bitfinex/quotes_ETHUSD_20260102
["timestamp","ask_amount","ask_price","bid_price","bid_amount"]
[1767368009755,4.0990187,3078.8,3077.4,2.34457449]
[1767368009956,0.851,3078.7,3077.6,2.31207953]
[1767368010387,0.853,3078.9,3077.6,2.31207953]
[1767368010796,0.50313078,3079.2,3077.8,2.31207953]
[1767368011363,0.50313078,3079.2,3078.0,2.31207953]
[1767368012096,2.35697998,3079.1,3077.7,2.31207953]
[1767368012285,2.35697998,3078.9,3077.7,2.31207953]
[1767368012609,0.93553168,3079.0,3077.8,2.31207953]
[1767368012781,0.851,3078.8,3077.8,2.31207953]
[1767368012983,3.20797998,3078.8,3077.8,2.31207953]
[1767368013498,6.4560645,3078.8,3077.8,2.31207953]
[1767368013694,0.64560645,3078.7,3077.8,2.31207953]
[1767368014795,2.35697998,3078.8,3077.8,2.31207953]
[1767368015011,0.851,3078.7,3077.8,2.31207953]
[1767368015211,0.851,3078.7,3077.9,2.31207953]
[1767368015514,0.851,3078.7,3078.0,2.31207953]
[1767368015818,2.35697998,3078.8,3078.0,2.31207953]
[1767368016019,3.20797998,3078.8,3078.0,2.31207953]
[1767368016381,3.20797998,3078.8,3078.0,2.54328748]
[1767368016627,0.851,3079.0,3078.0,2.54328748]
[1767368016831,0.50513078,3079.2,3078.0,2.54328748]
[1767368017337,0.851,3079.7,3078.1,2.31207953]
[1767368017499,0.851,3079.7,3078.4,6.49688148]
[1767368017814,2.35697998,3079.6,3078.2,0.25432875]
[1767368018018,0.002,3080.1,3078.4,2.31207953]
[1767368018019,3.24690282,3079.9,3078.4,2.31207953]
[1767368018321,2.35697998,3080.0,3078.4,2.31207953]
[1767368018821,4.09973425,3080.1,3078.8,2.31207953]
[1767368018822,0.002,3080.1,3078.8,2.31207953]
[1767368019114,0.002,3080.1,3079.0,2.31207953]
[1767368019319,2.35697998,3080.5,3079.1,5.29903509]
[1767368019494,2.35697998,3080.5,3079.2,2.31207953]
[1767368019818,2.35697998,3080.5,3079.4,2.31207953]
[1767368020023,3.24436349,3082.3,3079.3,6.49498262]
[1767368020024,2.35697998,3080.9,3079.6,2.31207953]
[1767368020217,2.35697998,3080.8,3079.7,0.31630795]
[1767368020385,2.35697998,3080.8,3079.7,2.62838748]
[1767368020720,0.851,3081.3,3079.7,2.62838748]
[1767368020886,2.35697998,3081.2,3079.7,2.62838748]
[1767368021290,2.35697998,3081.2,3079.7,0.31630795]
[1767368021492,2.35697998,3081.0,3079.0,2.31207953]
[1767368021690,2.35697998,3080.8,3079.0,2.31207953]
[1767368021886,2.35697998,3080.6,3079.0,2.31207953]
[1767368022124,2.35897998,3080.1,3079.0,2.31207953]
[1767368022292,2.35897998,3080.1,3079.1,2.31207953]
[1767368022493,0.002,3080.1,3079.3,2.31207953]
[1767368023603,0.002,3080.1,3079.5,2.31207953]
[1767368023824,2.35697998,3080.5,3079.5,2.31207953]
[1767368024311,3.24609786,3080.7,3079.5,2.31207953]
[1767368024509,2.35697998,3080.6,3079.2,2.86806675]
[1767368024695,2.35697998,3080.4,3079.2,2.31207953]
[1767368024896,2.35697998,3080.2,3079.0,5.55978939]
[1767368025232,3.2418965,3080.5,3079.2,2.31207953]
[1767368025395,1.73591652,3080.5,3079.1,2.31207953]
[1767368025699,2.35697998,3080.4,3079.3,2.31207953]
[1767368025900,0.851,3080.5,3079.5,2.31207953]
[1767368026609,2.35697998,3080.8,3079.5,2.31207953]
[1767368026826,2.35697998,3080.8,3079.6,2.31207953]
[1767368026988,0.851,3081.0,3079.6,2.31207953]
[1767368027297,3.20797998,3081.0,3079.8,2.31207953]
[1767368027496,3.20797998,3081.0,3080.0,2.31207953]
[1767368027793,2.35697998,3081.3,3080.1,2.31207953]
[1767368028417,2.35697998,3081.3,3080.3,2.31207953]
[1767368028615,0.002,3081.4,3080.3,2.31207953]
[1767368028820,2.35697998,3082.6,3080.8,2.31207953]
[1767368029021,0.235698,3082.5,3081.0,2.31207953]
[1767368029218,3.20797998,3082.8,3081.2,2.31207953]
[1767368029424,2.35697998,3082.7,3081.2,2.31207953]
[1767368029727,2.35697998,3082.7,3081.4,2.31207953]
[1767368029926,2.35697998,3082.7,3081.6,2.31207953]
[1767368030297,2.35697998,3082.7,3080.9,6.31814353]
[1767368030298,2.35697998,3083.0,3081.0,2.31207953]
[1767368030499,2.35697998,3083.0,3081.1,4.0955494]
[1767368030794,2.35697998,3082.8,3080.5,2.31207953]
[1767368030993,2.35697998,3082.0,3080.6,3.16207953]
[1767368031231,2.35697998,3081.8,3080.6,2.95291343]
[1767368031432,2.35697998,3081.8,3080.1,2.31207953]
[1767368031597,4.09605866,3081.7,3080.1,2.31207953]
[1767368031925,2.35697998,3081.6,3080.2,2.31207953]
[1767368032135,3.20797998,3081.6,3080.2,2.31207953]
[1767368032296,2.35697998,3081.5,3080.2,2.31207953]
[1767368032499,0.851,3081.6,3079.9,2.62828748]
[1767368032500,2.35697998,3081.3,3079.9,2.62828748]
[1767368032931,2.35697998,3081.3,3079.9,0.31620795]
[1767368033233,2.35697998,3081.3,3079.4,2.31207953]
[1767368033535,2.35697998,3081.1,3079.7,2.31207953]
[1767368033704,2.35697998,3081.1,3079.5,0.0324728]
[1767368033705,2.35697998,3080.9,3078.7,2.31207953]
[1767368033901,2.35697998,3080.9,3078.9,2.31207953]
[1767368034100,2.35697998,3080.7,3079.0,0.31620795]
[1767368034308,2.35697998,3080.5,3079.0,0.31620795]
[1767368035043,2.35697998,3080.5,3079.0,2.62828748]
[1767368035208,2.35697998,3080.7,3079.2,2.31207953]
[1767368035539,2.35697998,3081.1,3079.2,2.31207953]
[1767368035711,6.4526178,3081.1,3079.8,2.31207953]
[1767368035901,0.235898,3081.9,3079.8,2.31207953]
[1767368035902,5.60223977,3081.5,3079.8,2.31207953]
[1767368036115,2.35697998,3081.5,3080.0,2.25291195]
[1767368036332,0.85,3081.4,3080.2,2.25291195]
[1767368036653,0.851,3081.3,3080.3,0.03246437]
[1767368036813,0.851,3081.3,3080.4,0.22853763]
[1767368037957,3.24548877,3081.2,3080.4,0.22853763]
[1767368038137,2.38250285,3081.2,3080.2,2.25291195]
[1767368038316,0.002,3080.5,3079.8,3.10291195]
[1767368038637,2.38250285,3081.2,3080.1,3.24658201]
[1767368038840,2.38250285,3081.2,3080.0,3.24671269]
[1767368039025,2.38250285,3081.2,3080.1,3.7965446]
[1767368039228,2.38250285,3081.2,3080.2,5.49943095]
[1767368039422,2.38250285,3081.2,3080.2,2.25291195]
[1767368039942,2.38250285,3081.2,3080.3,0.03246437]
[1767368040141,5.62800762,3081.2,3080.2,2.25291195]
[1767368040448,2.38250285,3081.0,3079.7,0.85]
[1767368040643,2.38250285,3081.0,3079.3,0.31620795]
[1767368040844,2.38250285,3081.0,3079.1,2.25291195]
[1767368041141,2.38250285,3081.0,3078.7,6.35097859]
[1767368041437,2.38250285,3081.0,3079.0,5.50063713]
[1767368041746,2.38250285,3081.0,3078.7,0.85]
[1767368041747,0.85,3080.9,3079.7,5.49995492]
[1767368041948,2.38250285,3081.6,3080.1,2.25291195]
[1767368042134,7.04043526,3081.5,3080.2,2.47820315]
[1767368042349,2.38250285,3081.4,3080.2,2.47820315]
[1767368043441,2.38250285,3081.3,3080.2,2.47820315]
[1767368043652,0.002,3081.8,3080.4,2.25291195]
[1767368043816,0.002,3081.8,3080.6,2.25291195]
[1767368044018,0.002,3082.1,3080.8,2.25291195]
[1767368044217,2.38250285,3082.0,3080.8,2.25291195]
[1767368044443,0.002,3082.1,3080.8,2.25291195]
[1767368044614,2.38250285,3082.0,3080.8,2.25291195]
[1767368044819,0.002,3082.1,3081.0,2.25291195]
[1767368045017,0.002,3082.1,3081.2,2.25291195]
[1767368045213,0.85,3082.7,3081.2,2.25291195]
[1767368045480,2.38250285,3082.9,3081.2,2.25291195]
[1767368045746,1e-08,3083.3,3081.2,2.25291195]
[1767368045747,2.38250285,3082.7,3081.2,2.25291195]
[1767368046050,5.62669952,3082.5,3081.3,2.47820315]
[1767368046214,2.38250285,3082.5,3081.4,2.25291195]
[1767368046413,5.62662998,3082.5,3081.4,2.25291195]
[1767368046660,2.38250285,3082.4,3081.4,2.25291195]
[1767368046818,2.38250285,3082.4,3080.9,5.49862881]
[1767368047018,2.38250285,3082.2,3081.0,0.54986288]
[1767368047326,2.38250285,3082.2,3081.1,2.25291195]
[1767368047847,3.23250285,3082.1,3081.1,2.25291195]
[1767368048036,5.62714918,3082.0,3080.7,6.34884459]
[1767368048345,2.38250285,3082.3,3080.8,2.25291195]
[1767368048549,0.85,3082.1,3080.8,2.25291195]
[1767368048735,2.38250285,3082.0,3080.8,2.80281431]
[1767368048934,2.38250285,3082.0,3080.8,2.25291195]
[1767368049937,6.48853558,3082.4,3080.8,2.25291195]
[1767368049938,3.23250285,3081.9,3080.8,2.25291195]
[1767368050167,3.24439467,3082.3,3080.9,2.25291195]
[1767368050471,0.85,3082.2,3080.9,2.25291195]
[1767368050667,0.85,3082.1,3080.9,2.25291195]
[1767368050841,2.38250285,3082.0,3081.0,0.54987265]
[1767368051167,5.5335778,3082.0,3080.0,2.25291195]
[1767368051463,2.38250285,3081.9,3080.0,2.25291195]
[1767368051652,2.38250285,3081.9,3080.3,3.24637199]
[1767368051841,2.38250285,3081.7,3080.4,2.25291195]
[1767368052175,5.62772038,3081.5,3080.4,2.50073227]
[1767368052467,2.38250285,3081.4,3079.9,5.49970947]
[1767368052660,2.38250285,3081.4,3079.9,2.25291195]
[1767368052832,2.38250285,3081.4,3079.9,5.49970516]
[1767368053036,2.38250285,3081.9,3080.5,2.25291195]
[1767368053781,3.23250285,3082.3,3080.7,2.25291195]
[1767368053942,2.38250285,3082.3,3080.9,2.25291195]
[1767368054135,2.38250285,3082.3,3081.3,2.25291195]
[1767368054367,2.38250285,3082.7,3081.3,2.25291195]
[1767368054670,2.38250285,3082.6,3081.3,2.25291195]
[1767368055345,0.85,3082.5,3081.3,2.25291195]
[1767368055663,3.23250285,3082.4,3081.3,2.25291195]
[1767368055978,2.38250285,3082.3,3081.4,0.2252912]
[1767368056136,0.85,3082.3,3081.4,5.72343049]
[1767368056465,0.85,3082.5,3081.5,2.25291195]
[1767368056666,2.38250285,3082.8,3081.5,2.25291195]
[1767368057935,2.38250285,3083.6,3081.9,2.25291195]
[1767368058141,2.38250285,3083.9,3082.3,2.25291195]
[1767368058649,0.85,3083.7,3082.3,2.25291195]
[1767368058845,0.0014,3084.0,3082.4,2.25291195]
[1767368059146,0.0014,3084.0,3082.6,2.25291195]
[1767368059147,2.38250285,3083.9,3082.6,2.25291195]
[1767368059551,2.38250285,3083.9,3082.2,6.48887158]
[1767368059552,2.38250285,3083.9,3082.2,5.49734774]
[1767368059854,2.38250285,3083.8,3082.0,0.77864898]
[1767368060039,2.38250285,3083.4,3081.6,2.25291195]
[1767368060240,2.38250285,3083.2,3081.6,2.25291195]
[1767368060746,2.38250285,3083.2,3081.7,2.25291195]
[1767368060946,2.38250285,3083.2,3081.8,2.25291195]
[1767368061545,2.38250285,3083.2,3081.4,0.85]
[1767368061843,2.38250285,3083.0,3081.6,5.49796453]
[1767368062265,2.38250285,3082.9,3081.6,2.25291195]
[1767368062474,2.38250285,3082.7,3081.1,2.25291195]
[1767368062676,2.38250285,3082.7,3080.7,2.25291195]
[1767368062983,2.38250285,3082.7,3081.0,2.25291195]
[1767368063142,2.38250285,3082.5,3081.3,2.25291195]
[1767368063337,2.38250285,3082.5,3081.3,5.49828383]
[1767368063536,2.38250285,3082.5,3081.3,2.25291195]
[1767368063939,2.38250285,3082.5,3081.1,0.001]
[1767368064261,2.38250285,3082.3,3081.1,0.001]
[1767368064453,2.38250285,3082.1,3081.1,0.001]
[1767368064652,0.85,3082.0,3081.1,0.001]
[1767368064951,2.38250285,3081.9,3081.1,0.001]
[1767368065940,2.38250285,3081.9,3080.9,0.85]
[1767368066343,2.38250285,3081.9,3080.8,3.2458861]
[1767368066572,3.24443613,3082.2,3080.9,0.32783463]
[1767368066573,2.31536989,3082.2,3080.9,0.32783463]
[1767368066794,2.31536989,3082.2,3080.7,0.85]
[1767368067094,2.31536989,3082.2,3080.7,4.09600011]
[1767368067270,2.31536989,3082.2,3080.4,2.25291195]
[1767368067599,2.31536989,3082.2,3080.6,3.24611997]
[1767368067754,2.31536989,3082.0,3080.6,2.39765722]
[1767368067960,2.31536989,3082.0,3080.9,3.24574966]
[1767368068154,2.31536989,3082.0,3080.8,0.0324591]
[1767368068482,2.31536989,3082.0,3080.7,3.57068923]
[1767368068483,2.31536989,3081.9,3080.7,0.32476572]
[1767368069243,2.31536989,3081.9,3080.5,0.88246226]
[1767368069579,2.31536989,3081.7,3080.3,3.24765722]
[1767368069782,2.31536989,3081.7,3080.4,5.6439012]
[1767368070084,2.31536989,3081.7,3080.3,0.85]
[1767368070383,2.54690688,3081.7,3080.5,3.24616986]
[1767368070605,2.31536989,3081.6,3080.3,0.85]
[1767368070742,2.31536989,3081.6,3080.2,3.24651882]
[1767368070943,2.31536989,3081.6,3080.0,2.39765722]
[1767368071144,2.31536989,3081.4,3079.9,0.001]
[1767368071391,0.85,3081.5,3080.9,1.04e-06]
[1767368071392,2.31536989,3081.2,3080.9,1.04e-06]
[1767368071606,2.31536989,3081.2,3079.8,0.85]
[1767368071747,2.31536989,3081.2,3079.6,0.001]
[1767368071947,2.31536989,3081.2,3079.6,2.39865722]
[1767368072255,2.31536989,3080.8,3079.1,6.4954045]
[1767368072446,2.31536989,3080.6,3079.3,2.39765722]
[1767368072847,2.31536989,3080.6,3079.2,0.73454045]
[1767368073246,2.31536989,3081.2,3079.3,7.93123502]
[1767368073455,2.31536989,3081.1,3079.4,2.43013107]
[1767368074479,2.31536989,3081.0,3079.5,8.89221802]
[1767368074676,2.31536989,3081.0,3079.6,1.77494093]
[1767368074863,2.31536989,3080.8,3079.6,0.89246919]
[1767368075062,2.31536989,3080.8,3079.3,3.24741994]
[1767368075289,2.31536989,3080.8,3079.1,0.85]
[1767368075596,2.31536989,3080.6,3079.3,3.24743452]
[1767368075889,2.31536989,3080.4,3079.4,3.27983995]
[1767368076052,0.85,3080.3,3079.4,3.27983995]
[1767368076253,3.16536989,3080.3,3079.5,0.32798399]
[1767368076454,2.31536989,3080.2,3079.1,4.09768882]
[1767368076664,2.31536989,3080.2,3079.1,7.34539107]
[1767368077089,2.31536989,3080.2,3079.2,0.03247596]
[1767368077294,2.31536989,3080.2,3079.1,3.24764739]
[1767368077993,2.31536989,3080.2,3079.1,6.49534964]
[1767368078179,2.31536989,3081.7,3079.3,2.39765722]
[1767368078378,2.31536989,3081.3,3079.6,8.89200712]
[1767368078693,2.31536989,3081.1,3079.6,6.4943499]
[1767368078862,2.31536989,3081.0,3079.7,2.39765722]
[1767368079063,2.31536989,3081.0,3079.6,3.24717495]
[1767368079269,2.31536989,3080.8,3079.7,0.32471749]
[1767368079750,2.31536989,3080.8,3079.4,0.85]
[1767368079955,2.31536989,3080.8,3079.2,3.24751293]
[1767368080191,2.31536989,3080.8,3079.5,3.24724153]
[1767368080395,2.31536989,3080.6,3079.6,3.27954194]
[1767368080716,2.31536989,3080.6,3079.6,8.89190237]
[1767368081006,2.31536989,3080.6,3079.7,0.88919024]
[1767368081173,3.24613268,3080.6,3079.2,3.24757865]
[1767368081504,2.31536989,3080.5,3079.4,3.24738312]
[1767368081658,2.31536989,3080.5,3079.3,3.24748376]
[1767368081994,2.31536989,3080.5,3079.2,3.2475568]
[1767368082195,2.31536989,3080.3,3079.1,3.24768339]
[1767368082501,2.31536989,3081.3,3079.4,5.28840393]
[1767368082676,2.31536989,3081.0,3079.6,2.39765722]
[1767368083094,3.16536989,3081.0,3079.6,2.39765722]
[1767368083388,2.31536989,3080.9,3079.6,2.39765722]
[1767368083958,2.31536989,3080.9,3079.5,0.8824728]
[1767368084159,2.31536989,3080.7,3079.5,1.26298279]
[1767368084384,2.31536989,3080.7,3079.7,3.24706951]
[1767368084591,2.31536989,3080.7,3079.8,0.03246964]
[1767368084592,0.85,3080.6,3079.8,0.03246964]
[1767368084781,2.31536989,3080.6,3079.8,0.03246964]
[1767368085080,2.31536989,3080.6,3079.7,3.24706951]
[1767368085283,2.31536989,3080.6,3079.8,0.6494222]
[1767368085466,2.31536989,3080.6,3079.5,1.26298279]
[1767368085667,2.31536989,3080.6,3079.2,0.40986834]
[1767368085974,2.31536989,3080.6,3079.3,3.2474344]
[1767368086175,2.31536989,3080.6,3079.1,2.39765722]
[1767368086355,2.31536989,3080.6,3079.6,7.68606115]
[1767368086562,2.31536989,3081.1,3079.7,2.4301279]
[1767368086770,2.31536989,3081.1,3079.8,3.1695104]
[1767368086993,2.31536989,3081.1,3079.9,2.43012579]
[1767368087199,2.31536989,3081.8,3080.1,2.39765722]
[1767368087410,2.31536989,3081.6,3080.1,0.03246647]
[1767368087684,2.31736989,3080.9,3079.8,0.85]
[1767368087884,2.31736989,3080.9,3079.9,0.3572343]
[1767368088102,2.31736989,3080.9,3079.9,0.32476572]
[1767368089025,2.31536989,3080.7,3079.7,3.24706159]
[1767368089179,2.31536989,3080.7,3079.5,3.24720371]
[1767368089380,2.31536989,3080.7,3079.2,0.85]
[1767368089690,2.31536989,3080.7,3079.4,3.24733344]
[1767368089890,2.31536989,3080.5,3079.5,3.24727012]
[1767368090205,2.31536989,3080.3,3079.7,3.24701335]
[1767368090378,0.85,3080.4,3079.8,3.24689598]
[1767368090744,2.31536989,3080.7,3079.6,7.68606115]
[1767368090908,0.002,3080.9,3079.8,2.39765722]
[1767368091075,2.31736989,3080.9,3079.9,0.32801279]
[1767368091278,2.31736989,3080.9,3080.0,0.03246752]
[1767368091508,2.31736989,3080.9,3079.9,0.32801279]
[1767368091806,2.31736989,3080.9,3079.9,2.72567001]
[1767368092006,2.31736989,3080.9,3079.9,0.32801279]
[1767368092306,2.54910688,3080.9,3079.7,0.88247069]
[1767368092518,2.54910688,3080.9,3079.8,3.24696408]
[1767368093007,2.54910688,3080.9,3079.7,3.2470322]
[1767368093216,2.54910688,3080.9,3079.7,3.24703303]
[1767368093217,2.31536989,3080.8,3079.7,3.24703303]
[1767368093609,2.31536989,3080.6,3079.4,3.24734621]
[1767368093783,2.31536989,3080.4,3079.2,3.24755955]
[1767368093982,2.31536989,3080.4,3079.0,0.001]
[1767368094199,2.31536989,3080.4,3079.3,3.24747268]
[1767368094401,3.16536989,3080.4,3079.4,0.03247385]
[1767368094681,2.31536989,3080.3,3079.0,2.39865722]
[1767368094909,2.31536989,3080.1,3079.2,3.24758382]
[1767368095114,2.31536989,3080.1,3079.4,3.24737809]
[1767368095485,0.31653699,3080.5,3079.4,3.24737809]
[1767368095486,0.85,3080.4,3079.4,3.24737809]
[1767368095681,0.85,3080.4,3079.3,3.24738791]
[1767368095682,2.31536989,3080.4,3079.3,3.24738791]
[1767368096013,2.31536989,3080.4,3079.2,3.24758366]
[1767368096220,2.49515,3080.2,3079.0,0.32586572]
[1767368096527,2.49515,3080.2,3079.1,3.24770225]
[1767368096726,2.49515,3080.2,3079.1,8.93510151]
[1767368097625,0.85,3080.4,3079.0,0.32586572]
[1767368097626,2.49515,3080.1,3079.0,3.57365013]
[1767368097917,2.49515,3080.1,3079.1,2.43969701]
[1767368098120,2.829765,3080.1,3079.1,3.3658125]
[1767368098293,0.851,3080.3,3079.2,2.43969701]
[1767368098682,3.34615,3080.3,3079.3,3.24749131]
[1767368098903,3.34615,3080.3,3079.2,3.24757491]
[1767368098904,2.49515,3080.2,3079.2,3.24757491]
[1767368099521,2.49515,3080.2,3079.2,8.93486869]
[1767368099719,2.49715,3080.6,3079.4,2.43969701]
[1767368100013,2.49515,3080.4,3079.4,2.43969701]
[1767368100325,2.49515,3080.4,3078.3,2.43969701]
[1767368100492,2.829765,3080.3,3078.3,2.43969701]
[1767368100685,2.49515,3080.1,3078.7,2.43969701]
[1767368100885,2.49515,3080.1,3078.9,2.43969701]
[1767368101084,2.49515,3080.1,3079.0,2.43969701]
[1767368101288,2.49515,3080.1,3078.6,2.44069701]
[1767368101508,7.34396652,3080.3,3078.7,0.2440697]
[1767368101509,2.49515,3079.9,3078.7,0.2440697]
[1767368101712,0.851,3079.8,3078.7,0.2440697]
[1767368101916,2.49515,3079.7,3078.8,0.03248018]
[1767368102107,2.49715,3080.6,3078.9,5.28840393]
[1767368102307,2.49515,3080.4,3079.0,2.43969701]
[1767368102507,2.49515,3080.4,3079.4,2.43969701]
[1767368102826,2.49515,3080.4,3079.5,3.2472804]
[1767368103420,2.49515,3080.4,3079.4,5.68703858]
[1767368103725,2.49515,3080.3,3079.1,0.86105801]
[1767368104016,2.49515,3080.3,3078.7,0.2440697]
[1767368104193,2.49515,3080.1,3079.1,3.24763804]
[1767368104398,2.49715,3080.6,3079.5,2.43969701]
[1767368104606,2.49715,3080.6,3079.6,3.24717495]
[1767368104797,0.002,3080.6,3079.7,2.43969701]
[1767368105106,0.002,3080.6,3079.8,0.89340469]
[1767368105317,2.49515,3080.5,3079.0,0.85]
[1767368105518,2.49515,3080.4,3079.2,2.43969701]
[1767368105696,2.49515,3080.4,3079.5,5.68696855]
[1767368105892,2.49515,3080.4,3079.1,2.43969701]
[1767368106123,3.24812666,3080.6,3078.8,3.24795827]
[1767368106124,2.49515,3080.2,3078.8,3.24795827]
[1767368106292,2.49515,3080.0,3078.8,0.89368563]
[1767368106488,0.334615,3080.1,3079.0,2.43969701]
[1767368106707,0.851,3080.1,3079.1,8.93508064]
[1767368106910,0.002,3080.6,3079.3,2.43969701]
[1767368107123,2.49515,3080.4,3079.3,2.43969701]
[1767368107824,2.49515,3080.4,3079.1,6.49538363]
[1767368108028,2.49515,3080.4,3079.1,3.24768138]
[1767368108322,2.49515,3080.2,3079.0,3.24776278]
[1767368108500,2.49515,3080.1,3079.0,6.4955705]
[1767368109045,2.49515,3080.1,3078.9,0.85]
[1767368109340,2.49515,3080.0,3078.6,2.44069701]
[1767368109492,2.49515,3079.8,3078.6,6.25789183]
[1767368109695,2.49515,3079.6,3078.7,3.24811474]
[1767368109938,2.49515,3079.6,3078.9,3.24784296]
[1767368110105,2.49515,3079.6,3078.7,3.24808164]
[1767368110305,2.49515,3079.6,3078.6,3.24918013]
[1767368110508,2.49515,3079.6,3078.7,3.2481217]
[1767368110707,2.829765,3079.6,3078.6,3.2491578]
[1767368110924,2.829765,3079.6,3078.6,0.001]
[1767368111125,0.851,3079.5,3078.6,2.44069701]
[1767368111436,0.851,3079.4,3078.6,2.44069701]
[1767368112136,2.49515,3079.5,3078.6,2.44069701]
[1767368112427,3.6291265,3079.5,3078.6,2.44069701]
[1767368113132,0.89884596,3079.9,3078.8,2.43969701]
[1767368113307,3.34615,3079.9,3078.8,2.43969701]
[1767368113511,6.59301553,3079.9,3078.8,2.43969701]
[1767368113712,2.49515,3079.8,3078.6,0.001]
[1767368113938,2.49515,3079.8,3078.4,0.001]
[1767368114148,2.49515,3079.8,3078.6,5.68792672]
[1767368114431,3.34615,3079.7,3078.7,0.56879267]
[1767368114639,2.49515,3079.6,3078.7,0.56879267]
[1767368115000,0.851,3079.7,3078.7,3.04097092]
[1767368115259,2.49515,3080.0,3078.9,2.43969701]
[1767368115427,0.851,3079.9,3078.9,2.43969701]
[1767368115749,0.851,3080.3,3079.1,2.43969701]
[1767368115938,3.34615,3080.3,3079.2,2.43969701]
[1767368116229,3.34615,3080.3,3079.0,0.89357344]
[1767368116230,2.49515,3080.2,3079.0,0.89357344]
[1767368116434,2.49515,3080.2,3079.0,3.33327045]
[1767368116848,2.49515,3080.2,3079.0,0.89357344]
[1767368117050,0.851,3080.3,3078.4,0.001]
[1767368117051,2.49515,3080.0,3078.4,0.001]
[1767368117251,2.49515,3079.8,3078.4,0.001]
[1767368117414,2.49515,3079.5,3077.8,0.001]
[1767368117739,2.49515,3079.3,3077.8,0.001]
[1767368118248,2.49515,3079.1,3077.9,2.44069701]
[1767368118546,2.49515,3078.9,3078.0,2.43969701]
[1767368118743,0.851,3078.8,3078.0,2.43969701]
[1767368118941,2.49515,3078.7,3077.9,0.001]
[1767368119143,2.49515,3078.7,3077.9,2.44069701]
[1767368119315,2.49515,3078.7,3077.9,0.001]
[1767368119713,2.829765,3078.7,3077.9,0.001]
[1767368119917,2.49515,3078.6,3077.8,0.001]
[1767368121258,2.49515,3078.6,3078.4,0.001]
[1767368121554,2.49515,3078.6,3077.8,0.001]
[1767368122248,2.49515,3078.6,3077.5,3.24939062]
[1767368122450,2.49515,3078.6,3077.4,5.69011082]
[1767368122451,2.7781265,3078.6,3077.4,2.44069701]
[1767368122655,2.49515,3078.5,3077.4,2.44069701]
[1767368122957,2.49515,3078.3,3077.4,2.44069701]
[1767368123249,0.851,3078.2,3077.5,2.43969701]
[1767368123419,0.851,3078.2,3077.4,3.25045276]
[1767368123621,0.334615,3078.7,3077.6,2.43969701]
[1767368123859,3.58130817,3080.1,3078.1,2.43969701]
[1767368123860,2.49515,3079.9,3078.1,2.43969701]
[1767368124154,2.49515,3079.9,3078.5,2.43969701]
[1767368124456,3.34615,3079.9,3078.5,2.43969701]
[1767368124678,2.49515,3079.8,3078.5,2.43969701]
[1767368124870,3.58126358,3080.1,3078.5,2.43969701]
[1767368124871,0.334615,3080.1,3078.7,2.43969701]
[1767368125044,0.851,3080.0,3078.7,2.47217825]
[1767368125243,0.851,3080.0,3078.9,2.43969701]
[1767368125468,2.49515,3080.2,3078.9,2.43969701]
[1767368125670,3.34615,3080.1,3078.9,2.43969701]
[1767368125842,2.49515,3080.0,3078.9,2.43969701]
[1767368126042,2.829765,3080.0,3079.0,0.89357344]
[1767368126456,2.829765,3080.0,3079.1,2.29644147]
[1767368126648,2.829765,3080.0,3078.6,0.3289697]
[1767368126867,2.829765,3080.0,3078.4,2.4723722]
[1767368127384,2.829765,3080.0,3078.5,3.24825464]
[1767368127385,2.35258057,3079.8,3078.5,3.24825464]
[1767368127594,2.35258057,3079.8,3078.5,2.4723722]
[1767368127770,2.35258057,3079.8,3078.0,0.85]
[1767368127771,2.35258057,3079.8,3078.2,3.24858304]
[1767368127938,2.35258057,3079.8,3078.1,5.72109695]
[1767368128145,2.35258057,3079.6,3078.2,3.24862452]
[1767368128446,2.35258057,3079.4,3078.2,3.24862452]
[1767368128678,2.35258057,3079.4,3078.1,2.4723722]
[1767368129191,2.35258057,3079.4,3077.6,2.4723722]
[1767368129483,2.35258057,3079.2,3078.1,0.001]
[1767368129688,6.49498262,3079.3,3078.1,0.001]
[1767368129689,2.35258057,3079.0,3078.1,0.001]
[1767368129837,0.851,3078.9,3078.1,0.001]
[1767368130038,3.20358057,3078.9,3078.1,0.001]
[1767368130351,3.20358057,3078.9,3077.6,5.7216472]
[1767368130352,2.35258057,3078.8,3077.6,2.4723722]
[1767368130547,0.88475632,3079.1,3077.7,2.4723722]
[1767368130859,3.24740281,3079.4,3077.7,2.4723722]
[1767368130860,0.851,3079.0,3077.7,2.4723722]
[1767368131268,0.851,3079.3,3078.1,2.4723722]
[1767368131468,0.851,3079.4,3078.3,2.4723722]
[1767368131845,3.20358057,3079.4,3078.3,2.4723722]
[1767368132575,3.20358057,3079.4,3078.5,2.4723722]
[1767368132769,3.20358057,3079.4,3078.6,0.24723722]
[1767368133543,2.35258057,3079.3,3078.6,0.24723722]
[1767368133741,2.35258057,3079.3,3078.1,6.57108456]
[1767368134076,2.35258057,3079.3,3078.1,3.3223722]
[1767368134475,2.35258057,3079.3,3077.7,2.4723722]
[1767368134953,2.35258057,3079.3,3077.7,5.7215124]
[1767368135159,2.35258057,3079.3,3077.7,2.4723722]
[1767368135374,2.35258057,3079.1,3077.7,6.29369225]
[1767368135674,2.35258057,3078.9,3077.7,3.04453506]
[1767368135976,2.35258057,3078.7,3077.7,2.4723722]
[1767368136878,1.29458334,3079.2,3077.8,2.4723722]
[1767368137044,2.35258057,3080.3,3078.1,2.4723722]
[1767368137249,2.35258057,3080.1,3078.3,2.4723722]
[1767368137758,5.60093916,3080.4,3078.6,2.4723722]
[1767368138067,2.35258057,3080.3,3079.0,2.4723722]
[1767368138259,0.002,3080.4,3079.3,5.28840393]
[1767368138460,0.002,3080.4,3079.4,2.4723722]
[1767368138664,2.35258057,3080.3,3079.1,0.77607761]
[1767368138966,0.002,3080.0,3079.0,2.4723722]
[1767368139983,0.002,3080.0,3079.0,5.72015717]
[1767368140767,2.35458057,3080.0,3079.0,5.72015717]
[1767368141278,0.002,3080.4,3079.0,11.78399662]
[1767368141482,0.002,3080.4,3079.1,2.4723722]
[1767368141683,0.002,3080.4,3079.3,2.4723722]
[1767368141901,0.002,3080.6,3079.5,2.4723722]
[1767368142054,0.002,3080.7,3079.5,2.4723722]
[1767368143786,0.002,3080.7,3079.7,2.4723722]
[1767368143970,0.002,3080.9,3079.9,2.4723722]
[1767368144171,0.002,3080.9,3080.1,2.4723722]
[1767368145886,2.35258057,3081.3,3080.3,2.4723722]
[1767368146087,2.35458057,3081.7,3080.3,2.4723722]
[1767368146285,3.24699091,3081.7,3080.3,2.4723722]
[1767368146583,0.002,3080.7,3080.3,2.4723722]
[1767368146795,2.35258057,3081.6,3080.5,2.4723722]
[1767368147001,2.35258057,3081.6,3080.0,6.05129288]